fUST/lending_fUST_20250102
["ID","MTS","AMOUNT","RATE_DAILY","PERIOD"]
[347427940,1735794638012,-500.0,0.00017813,2]
[347427941,1735794638022,-500.0,0.00017813,2]
[347427942,1735794638031,-500.0,0.00017813,2]
[347427943,1735794638041,-500.0,0.00017813,2]
[347427944,1735794638050,-500.0,0.00017813,2]
[347427945,1735794638059,-500.0,0.00017813,2]
[347427947,1735794638069,-500.0,0.00017813,2]
[347427948,1735794638078,-157.47442563,0.00017813,2]
[347427950,1735794638087,-193.0614208,0.00017813,2]
[347427952,1735794638097,-500.0,0.00017813,2]
[347427953,1735794638106,-500.0,0.00017813,2]
[347427954,1735794638115,-500.0,0.00017813,2]
[347427955,1735794638124,-500.0,0.00017813,2]
[347427956,1735794638134,-500.0,0.00017813,2]
[347427957,1735794638143,-500.0,0.00017813,2]
[347427958,1735794638153,-500.0,0.00017813,2]
[347427959,1735794638162,-500.0,0.00017813,2]
[347427960,1735794638172,-500.0,0.00017813,2]
[347427961,1735794638181,-500.0,0.00017813,2]
[347427962,1735794638192,-500.0,0.00017813,2]
[347427963,1735794638201,-500.0,0.00017813,2]
[347427964,1735794638211,-500.0,0.00017813,2]
[347427965,1735794638220,-500.0,0.00017813,2]
[347427966,1735794638229,-500.0,0.00017813,2]
[347427967,1735794638239,-500.0,0.00017813,2]
[347427968,1735794638249,-500.0,0.00017813,2]
[347427969,1735794638259,-500.0,0.00017813,2]
[347427970,1735794638268,-500.0,0.00017813,2]
[347427971,1735794638278,-500.0,0.00017813,2]
[347427972,1735794638290,-500.0,0.00017813,2]
[347427973,1735794638299,-500.0,0.00017813,2]
[347427974,1735794638309,-500.0,0.00017813,2]
[347427975,1735794638318,-500.0,0.00017813,2]
[347427976,1735794638328,-500.0,0.00017813,2]
[347427977,1735794638342,-500.0,0.00017813,2]
[347427978,1735794638352,-500.0,0.00017813,2]
[347427979,1735794638362,-500.0,0.00017813,2]
[347427980,1735794638372,-500.0,0.00017813,2]
[347427981,1735794638382,-500.0,0.00017813,2]
[347427982,1735794638391,-500.0,0.00017813,2]
[347427983,1735794638400,-500.0,0.00017813,2]
[347427984,1735794638409,-500.0,0.00017813,2]
[347427985,1735794638419,-500.0,0.00017813,2]
[347427986,1735794638428,-500.0,0.00017813,2]
[347427987,1735794638440,-500.0,0.00017813,2]
[347427988,1735794638450,-500.0,0.00017813,2]
[347427989,1735794638460,-500.0,0.00017813,2]
[347427990,1735794638469,-500.0,0.00017813,2]
[347427991,1735794638479,-500.0,0.00017813,2]
[347427992,1735794638488,-500.0,0.00017813,2]
[347427993,1735794638498,-500.0,0.00017813,2]
[347427994,1735794638507,-500.0,0.00017813,2]
[347427995,1735794638517,-500.0,0.00017813,2]
[347427996,1735794638526,-500.0,0.00017813,2]
[347427997,1735794638535,-500.0,0.00017813,2]
[347427998,1735794638544,-500.0,0.00017813,2]
[347427999,1735794638554,-500.0,0.00017813,2]
[347428000,1735794638563,-500.0,0.00017813,2]
[347428001,1735794638573,-500.0,0.00017813,2]
[347428002,1735794638582,-500.0,0.00017813,2]
[347428003,1735794638592,-500.0,0.00017813,2]
[347428004,1735794638601,-328.22910016,0.00017813,2]
[347428005,1735794638611,-129804.75458239,0.00017814,2]
[347428006,1735794638621,-19633.50299356,0.00017814,2]
[347428007,1735794638631,-9553.7932552,0.00017814,2]
[347428008,1735794638640,-500.0,0.00017873,2]
[347428009,1735794638649,-12930.87949742,0.00017951,2]
[347428010,1735794638659,-208.81880726,0.00018018,2]
[347428011,1735794638670,-152.0,0.00018131,2]
[347428012,1735794638679,-12930.87949742,0.00018242,2]
[347428013,1735794638689,-500.0,0.00018273,2]
[347428014,1735794638698,-500.0,0.00018273,2]
[347428015,1735794638707,-1747.02255844,0.00018393,2]
[347428016,1735794638717,-1005.29883538,0.00018421,2]
[347428017,1735794638726,-837.38280961,0.00018474,2]
[347428018,1735794638737,-1506.87663046,0.00018542,2]
[347428019,1735794638802,-5434.91984304,0.00018542,2]
[347428058,1735794643055,-5989.08302392,0.00018542,2]
[347428059,1735794643065,-420.0,0.00018729,2]
[347428060,1735794643075,-1747.02255843,0.00018769,2]
[347428061,1735794643085,-12930.87949742,0.00018784,2]
[347428062,1735794643095,-502.1029134,0.00018821,2]
[347428063,1735794643105,-1000.0,0.00018821,2]
[347428064,1735794643114,-3802.0073634,0.000189,2]
[347428065,1735794643126,-12930.87949742,0.00019132,2]
[347428066,1735794643135,-1747.02255843,0.00019145,2]
[347428067,1735794643144,-500.0,0.00019178,2]
[347428068,1735794643154,-501.85628165,0.00019178,2]
[347428069,1735794643163,-500.0,0.00019178,2]
[347428070,1735794643172,-177.56662478,0.00019178,2]
[347428071,1735794643181,-1881.75,0.00019178,2]
[347428072,1735794643191,-500.0,0.00019178,2]
[347428073,1735794643201,-1108.5,0.00019178,2]
[347428074,1735794643210,-500.0,0.00019178,2]
[347428075,1735794643220,-1159.6,0.00019178,2]
[347428076,1735794643229,-12930.87949745,0.00019223,2]
[347428077,1735794643239,-873.6825251,0.00019335,2]
[347428078,1735794643249,-500.0,0.00019452,3]
[347428079,1735794643258,-500.0,0.00019452,3]
[347428080,1735794643268,-1881.75,0.00019452,3]
[347428081,1735794643277,-500.0,0.00019452,3]
[347428082,1735794643288,-1108.5,0.00019452,3]
[347428083,1735794643299,-500.0,0.00019452,3]
[347428084,1735794643309,-1159.6,0.00019452,3]
[347428085,1735794643318,-468.92,0.000195,2]
[347428086,1735794643328,-1747.02255843,0.0001952,2]
[347428087,1735794643338,-390.59259104,0.00019651,2]
[347428088,1735794643348,-151.0,0.000197,2]
[347428089,1735794643358,-500.0,0.00019716,2]
[347428090,1735794643368,-154.19657882,0.00019716,2]
[347428091,1735794643378,-500.0,0.00019716,2]
[347428092,1735794643388,-322.65263809,0.00019716,2]
[347428093,1735794643398,-500.0,0.00019717,3]
[347428094,1735794643408,-500.0,0.00019717,3]
[347428095,1735794643417,-504.47849293,0.00019717,3]
[347428096,1735794643427,-500.0,0.00019717,3]
[347428097,1735794643438,-3368.58,0.00019717,3]
[347428098,1735794643448,-500.0,0.00019717,3]
[347428099,1735794643457,-500.0,0.00019717,3]
[347428100,1735794643467,-534.12,0.00019717,3]
[347428101,1735794643476,-1775.41,0.00019717,3]
[347428102,1735794643486,-1212.23,0.00019717,3]
[347428103,1735794643495,-561.38,0.00019717,3]
[347428104,1735794643506,-500.0,0.00019717,3]
[347428105,1735794643516,-500.0,0.00019717,3]
[347428106,1735794643525,-500.0,0.00019717,3]
[347428107,1735794643535,-500.0,0.00019717,3]
[347428108,1735794643544,-672.92,0.00019717,3]
[347428109,1735794643554,-571.1,0.00019718,3]
[347428110,1735794643564,-500.0,0.00019718,3]
[347428111,1735794643574,-500.0,0.00019718,3]
[347428112,1735794643584,-500.0,0.00019718,3]
[347428113,1735794643594,-500.0,0.00019718,3]
[347428114,1735794643604,-500.0,0.00019718,3]
[347428115,1735794643614,-500.0,0.00019718,3]
[347428116,1735794643623,-500.0,0.00019718,3]
[347428117,1735794643632,-180.17248684,0.00019719,2]
[347428118,1735794643642,-500.0,0.00019719,3]
[347428119,1735794643651,-500.0,0.00019719,3]
[347428120,1735794643661,-500.0,0.00019719,3]
[347428121,1735794643670,-500.0,0.00019719,3]
[347428122,1735794643679,-500.0,0.00019719,3]
[347428123,1735794643688,-500.0,0.00019719,3]
[347428124,1735794643698,-500.0,0.00019719,3]
[347428125,1735794643707,-409.54697569,0.00019719,3]
[347428126,1735794643717,-500.0,0.00019719,3]
[347428127,1735794643726,-500.0,0.00019719,3]
[347428128,1735794643735,-500.0,0.00019719,3]
[347428129,1735794643745,-156.94373206,0.00019719,3]
[347428130,1735794643754,-500.0,0.00019719,3]
[347428131,1735794643763,-500.0,0.00019719,3]
[347428132,1735794643772,-500.0,0.00019719,3]
[347428133,1735794643781,-500.0,0.00019719,3]
[347428134,1735794643790,-500.0,0.00019719,3]
[347428135,1735794643799,-500.0,0.00019719,3]
[347428136,1735794643809,-500.0,0.00019719,3]
[347428137,1735794643818,-738.55,0.00019719,3]
[347428138,1735794643827,-500.0,0.00019719,3]
[347428139,1735794643836,-500.0,0.00019719,3]
[347428140,1735794643845,-500.0,0.00019719,3]
[347428141,1735794643854,-500.0,0.00019719,3]
[347428142,1735794643863,-500.0,0.00019719,3]
[347428143,1735794643873,-454.95577483,0.00019719,3]
[347428144,1735794643882,-200.0,0.00019719,3]
[347428145,1735794643891,-500.0,0.00019719,3]
[347428146,1735794643900,-327.13738913,0.00019719,3]
[347428147,1735794643909,-500.0,0.00019719,3]
[347428148,1735794643919,-707.22,0.00019719,3]
[347428149,1735794643929,-609.28050601,0.00019719,3]
[347428150,1735794643938,-500.0,0.00019719,3]
[347428151,1735794643949,-500.0,0.00019719,3]
[347428152,1735794643958,-500.0,0.00019719,3]
[347428153,1735794643967,-501.39599755,0.00019719,3]
[347428154,1735794643976,-501.70088886,0.00019719,3]
[347428155,1735794643986,-500.0,0.00019719,3]
[347428156,1735794643994,-500.0,0.00019719,3]
[347428157,1735794644004,-500.0,0.00019719,3]
[347428158,1735794644013,-237.9477663,0.00019719,3]
[347428159,1735794644022,-518.7850603,0.00019719,3]
[347428160,1735794644031,-500.0,0.00019719,3]
[347428161,1735794644040,-500.0,0.00019719,3]
[347428162,1735794644049,-507.10009665,0.00019719,3]
[347428163,1735794644059,-503.17747718,0.00019719,3]
[347428164,1735794644068,-463.49033799,0.00019719,3]
[347428165,1735794644077,-500.0,0.00019719,3]
[347428166,1735794644087,-500.0,0.00019719,3]
[347428167,1735794644096,-374.70637749,0.00019719,3]
[347428168,1735794644105,-501.27810785,0.00019719,3]
[347428169,1735794644114,-500.6479452,0.00019719,3]
[347428170,1735794644123,-500.0,0.00019719,3]
[347428171,1735794644134,-500.83373591,0.00019719,3]
[347428172,1735794644144,-280.13927571,0.00019719,3]
[347428173,1735794644155,-500.0,0.00019719,3]
[347428174,1735794644164,-500.0,0.00019719,3]
[347428175,1735794644173,-501.281296,0.00019719,3]
[347428176,1735794644182,-502.2324655,0.00019719,3]
[347428177,1735794644191,-500.0,0.00019719,3]
[347428178,1735794644202,-500.0,0.00019719,3]
[347428179,1735794644211,-500.0,0.00019719,3]
[347428180,1735794644220,-502.51664137,0.00019719,3]
[347428181,1735794644229,-500.0,0.00019719,3]
[347428182,1735794644238,-465.40389406,0.00019719,3]
[347428183,1735794644249,-203.04739486,0.00019719,3]
[347428184,1735794644258,-501.50596107,0.00019719,3]
[347428185,1735794644267,-500.0,0.00019719,3]
[347428186,1735794644276,-500.0,0.00019719,3]
[347428187,1735794644286,-500.0,0.00019719,3]
[347428188,1735794644297,-500.0,0.00019719,3]
[347428189,1735794644306,-501.63942093,0.00019719,3]
[347428190,1735794644315,-509.53,0.00019719,3]
[347428191,1735794644324,-501.71591122,0.00019719,3]
[347428192,1735794644335,-500.0,0.00019719,3]
[347428193,1735794644344,-500.0,0.00019719,3]
[347428194,1735794644353,-501.07647486,0.00019719,3]
[347428195,1735794644362,-500.0,0.00019719,3]
[347428196,1735794644372,-549.53786273,0.00019719,3]
[347428197,1735794644381,-500.0,0.00019719,3]
[347428198,1735794644390,-500.0,0.00019719,3]
[347428199,1735794644400,-500.0,0.00019719,3]
[347428200,1735794644410,-500.0,0.00019719,3]
[347428201,1735794644419,-500.0,0.00019719,3]
[347428202,1735794644428,-500.0,0.00019719,3]
[347428203,1735794644437,-501.66431682,0.00019719,3]
[347428204,1735794644534,-500.0,0.00019719,3]
[347428205,1735794644544,-582.11,0.00019719,3]
[347428206,1735794644553,-500.0,0.00019719,3]
[347428207,1735794644562,-500.0,0.00019719,3]
[347428208,1735794644571,-500.0,0.00019719,3]
[347428209,1735794644580,-501.88157086,0.00019719,3]
[347428210,1735794644590,-500.0,0.00019719,3]
[347428211,1735794644599,-502.09090297,0.00019719,3]
[347428212,1735794644608,-500.00449415,0.00019719,3]
[347428213,1735794644617,-500.0,0.00019719,3]
[347428214,1735794644626,-500.0,0.00019719,3]
[347428215,1735794644635,-500.0,0.00019719,3]
[347428216,1735794644644,-500.0,0.00019719,3]
[347428217,1735794644653,-500.0,0.00019719,3]
[347428218,1735794644662,-500.0,0.00019719,3]
[347428219,1735794644671,-500.0,0.00019719,3]
[347428220,1735794644680,-500.0,0.00019719,3]
[347428221,1735794644689,-501.03121736,0.00019719,3]
[347428222,1735794644699,-282.65182548,0.00019719,3]
[347428223,1735794644708,-501.2980998,0.00019719,3]
[347428224,1735794644717,-500.0,0.00019719,3]
[347428225,1735794644726,-500.0,0.00019719,3]
[347428226,1735794644735,-524.61,0.00019719,3]
[347428227,1735794644744,-501.76165185,0.00019719,3]
[347428228,1735794644753,-500.0,0.00019719,3]
[347428229,1735794644762,-500.0,0.00019719,3]
[347428230,1735794644772,-500.0,0.00019719,3]
[347428231,1735794644781,-1829.75,0.00019719,3]
[347428232,1735794644790,-500.0,0.00019719,3]
[347428233,1735794644799,-500.0,0.00019719,3]
[347428234,1735794644808,-779.37,0.00019719,3]
[347428235,1735794644817,-500.0,0.00019719,3]
[347428236,1735794644831,-571.57085,0.00019719,3]
[347428237,1735794644840,-501.74111073,0.00019719,3]
[347428238,1735794644849,-500.0,0.00019719,3]
[347428239,1735794644858,-500.0,0.00019719,3]
[347428240,1735794644868,-500.0,0.00019719,3]
[347428241,1735794644877,-577.85,0.00019719,3]
[347428242,1735794644886,-23779.58,0.00019719,3]
[347428243,1735794644895,-500.0,0.00019719,3]
[347428244,1735794644905,-501.05338533,0.00019719,3]
[347428245,1735794644914,-500.0,0.00019719,3]
[347428246,1735794644923,-501.68152722,0.00019719,3]
[347428247,1735794644932,-500.0,0.00019719,3]
[347428248,1735794644942,-502.1179202,0.00019719,3]
[347428249,1735794644952,-814.17,0.00019719,3]
[347428250,1735794644964,-500.0,0.00019719,3]
[347428251,1735794644974,-500.0,0.00019719,3]
[347428252,1735794644983,-500.0,0.00019719,3]
[347428253,1735794644992,-500.0,0.00019719,3]
[347428254,1735794645002,-500.0,0.00019719,3]
[347428255,1735794645011,-1149.49,0.00019719,3]
[347428256,1735794645021,-505.48079359,0.00019719,3]
[347428257,1735794645030,-500.33382448,0.00019719,2]
[347428258,1735794645039,-500.0,0.00019719,3]
[347428259,1735794645048,-500.0,0.00019719,3]
[347428260,1735794645058,-500.0,0.00019719,3]
[347428261,1735794645067,-501.36285279,0.00019719,3]
[347428262,1735794645076,-516.81398458,0.00019719,3]
[347428263,1735794645085,-1427.8,0.00019719,3]
[347428264,1735794645094,-500.41877827,0.00019719,3]
[347428265,1735794645103,-500.0,0.00019719,3]
[347428266,1735794645112,-503.5642976,0.00019719,3]
[347428267,1735794645121,-500.0,0.00019719,3]
[347428268,1735794645131,-500.0,0.00019719,3]
[347428269,1735794645141,-584.85023798,0.00019719,3]
[347428270,1735794645150,-1331.34,0.00019719,3]
[347428271,1735794645159,-500.0,0.00019719,3]
[347428272,1735794645168,-604.16,0.00019719,3]
[347428273,1735794645177,-860.85,0.00019719,3]
[347428274,1735794645187,-500.0,0.00019719,3]
[347428275,1735794645196,-500.0,0.00019719,3]
[347428276,1735794645205,-502.65270032,0.00019719,3]
[347428277,1735794645215,-501.32628913,0.00019719,3]
[347428278,1735794645225,-500.0,0.00019719,3]
[347428279,1735794645234,-500.0,0.00019719,3]
[347428280,1735794645244,-500.0,0.00019719,3]
[347428281,1735794645253,-574.63849654,0.00019719,3]
[347428282,1735794645262,-501.13944185,0.00019719,3]
[347428283,1735794645272,-1449.18,0.00019719,3]
[347428284,1735794645281,-501.56188849,0.00019719,3]
[347428285,1735794645293,-504.35819125,0.00019719,3]
[347428286,1735794645302,-502.71314544,0.00019719,3]
[347428287,1735794645311,-501.45744618,0.00019719,3]
[347428288,1735794645320,-503.65680103,0.00019719,3]
[347428289,1735794645329,-500.0,0.00019719,3]
[347428290,1735794645340,-500.0,0.00019719,3]
[347428291,1735794645349,-500.0,0.00019719,3]
[347428292,1735794645359,-500.0,0.00019719,3]
[347428293,1735794645368,-500.0,0.00019719,3]
[347428294,1735794645377,-500.0,0.00019719,3]
[347428295,1735794645386,-500.0,0.00019719,3]
[347428296,1735794645395,-500.0,0.00019719,3]
[347428297,1735794645405,-500.0,0.00019719,3]
[347428298,1735794645414,-500.0,0.00019719,3]
[347428299,1735794645423,-500.0,0.00019719,3]
[347428300,1735794645433,-500.0,0.00019719,3]
[347428301,1735794645443,-500.0,0.00019719,3]
[347428302,1735794645453,-500.0,0.00019719,3]
[347428303,1735794645462,-224.83097461,0.00019719,3]
[347428305,1735794645472,-500.0,0.00019719,3]
[347428306,1735794645481,-500.0,0.00019719,3]
[347428307,1735794645490,-1189.92,0.00019719,2]
[347428309,1735794645499,-500.0,0.00019719,3]
[347428310,1735794645508,-500.39115022,0.00019719,3]
[347428311,1735794645518,-501.17707604,0.00019719,3]
[347428312,1735794645527,-847.21,0.00019719,3]
[347428313,1735794645537,-500.0,0.00019719,3]
[347428314,1735794645546,-501.4376426,0.00019719,3]
[347428315,1735794645555,-500.0,0.00019719,3]
[347428316,1735794645565,-500.0,0.00019719,3]
[347428317,1735794645574,-517.7,0.00019719,3]
[347428318,1735794645583,-500.0,0.00019719,3]
[347428319,1735794645592,-500.0,0.00019719,3]
[347428320,1735794645602,-501.61496077,0.00019719,3]
[347428321,1735794645611,-500.0,0.00019719,3]
[347428322,1735794645620,-1081.19,0.00019719,3]
[347428324,1735794645630,-500.0,0.00019719,3]
[347428325,1735794645639,-306.6465906,0.00019719,3]
[347428326,1735794645649,-500.0,0.00019719,3]
[347428327,1735794645658,-500.72293514,0.00019719,3]
[347428328,1735794645667,-500.0,0.00019719,3]
[347428329,1735794645676,-500.0,0.00019719,3]
[347428330,1735794645685,-500.0,0.00019719,3]
[347428331,1735794645696,-500.0,0.00019719,3]
[347428332,1735794645705,-500.58584617,0.00019719,3]
[347428333,1735794645714,-501.15665779,0.00019719,3]
[347428334,1735794645724,-511.5,0.00019719,3]
[347428335,1735794645734,-500.0,0.00019719,3]
[347428336,1735794645743,-500.0,0.00019719,3]
[347428338,1735794645754,-500.0,0.00019719,3]
[347428340,1735794645763,-500.0,0.00019719,3]
[347428342,1735794645772,-421.64964456,0.00019719,3]
[347428343,1735794645781,-511.13086422,0.00019719,3]
[347428345,1735794645790,-500.0,0.00019719,3]
[347428347,1735794645799,-500.0,0.00019719,3]
[347428348,1735794645808,-500.0,0.00019719,3]
[347428349,1735794645818,-500.0,0.00019719,3]
[347428350,1735794645829,-502.60240381,0.00019719,3]
[347428351,1735794645839,-502.67397954,0.00019719,3]
[347428352,1735794645849,-502.23798082,0.00019719,3]
[347428354,1735794645859,-769.73,0.00019719,3]
[347428355,1735794645868,-501.77574022,0.00019719,3]
[347428356,1735794645878,-500.0,0.00019719,3]
[347428357,1735794645887,-500.0,0.00019719,3]
[347428358,1735794645897,-500.0,0.00019719,3]
[347428359,1735794645906,-502.15222398,0.00019719,3]
[347428360,1735794645915,-500.68739677,0.00019719,3]
[347428361,1735794645924,-500.0,0.00019719,3]
[347428362,1735794645934,-503.86458562,0.00019719,3]
[347428363,1735794645943,-500.0,0.00019719,3]
[347428364,1735794645953,-502.26561153,0.00019719,3]
[347428365,1735794645963,-500.93757298,0.00019719,3]
[347428371,1735794646052,-500.0,0.00019719,3]
[347428373,1735794646061,-500.0,0.00019719,3]
[347428375,1735794646071,-505.39971729,0.00019719,3]
[347428376,1735794646080,-500.30969444,0.00019719,3]
[347428377,1735794646089,-500.0,0.00019719,3]
[347428378,1735794646098,-503.48084482,0.00019719,3]
[347428379,1735794646107,-500.69678624,0.00019719,3]
[347428380,1735794646116,-1957.32,0.00019719,3]
[347428381,1735794646125,-1957.32,0.00019719,3]
[347428382,1735794646134,-500.0,0.00019719,3]
[347428383,1735794646144,-1957.32,0.00019719,3]
[347428384,1735794646153,-551.07930527,0.00019719,3]
[347428386,1735794646162,-1957.32,0.00019719,3]
[347428388,1735794646171,-1957.32,0.00019719,3]
[347428390,1735794646180,-500.0,0.00019719,3]
[347428392,1735794646190,-1957.32,0.00019719,3]
[347428394,1735794646202,-500.0,0.00019719,3]
[347428396,1735794646211,-500.0,0.00019719,3]
[347428398,1735794646221,-500.0,0.00019719,3]
[347428399,1735794646230,-500.0,0.00019719,3]
[347428400,1735794646240,-502.60659781,0.00019719,3]
[347428401,1735794646249,-500.2928245,0.00019719,3]
[347428402,1735794646258,-505.30062941,0.00019719,3]
[347428403,1735794646267,-500.0,0.00019719,3]
[347428404,1735794646276,-500.0,0.00019719,3]
[347428405,1735794646285,-502.86984367,0.00019719,3]
[347428406,1735794646296,-504.68442106,0.00019719,3]
[347428407,1735794646306,-155.05,0.0001972,2]
[347428408,1735794646315,-500.0,0.0001972,3]
[347428409,1735794646324,-500.0,0.0001972,3]
[347428410,1735794646334,-1957.32,0.0001972,3]
[347428411,1735794646345,-1957.32,0.0001972,3]
[347428412,1735794646355,-500.0,0.0001972,3]
[347428413,1735794646364,-500.0,0.0001972,3]
[347428414,1735794646374,-500.0,0.0001972,3]
[347428415,1735794646383,-500.0,0.00019721,3]
[347428416,1735794646394,-500.0,0.00019721,3]
[347428417,1735794646403,-220.20443227,0.00019721,3]
[347428418,1735794646413,-505.04359125,0.00019721,3]
[347428419,1735794646422,-503.41163723,0.00019721,3]
[347428420,1735794646432,-502.59993012,0.00019721,3]
[347428421,1735794646441,-500.0,0.00019721,3]
[347428422,1735794646453,-500.0,0.00019721,3]
[347428423,1735794646462,-500.0,0.00019721,3]
[347428424,1735794646472,-500.0,0.00019721,3]
[347428425,1735794646481,-797.53,0.00019721,3]
[347428426,1735794646490,-500.73548321,0.00019721,3]
[347428427,1735794646499,-500.0,0.00019721,3]
[347428428,1735794646509,-500.0,0.00019721,3]
[347428429,1735794646518,-500.0,0.00019721,3]
[347428430,1735794646527,-500.0,0.00019721,3]
[347428431,1735794646536,-500.0,0.00019721,3]
[347428432,1735794646545,-500.0,0.00019721,3]
[347428433,1735794646554,-784.26,0.00019721,3]
[347428434,1735794646563,-500.0,0.00019721,3]
[347428435,1735794646572,-500.0,0.00019721,3]
[347428436,1735794646582,-502.78208747,0.00019721,3]
[347428437,1735794646591,-500.0,0.00019721,3]
[347428438,1735794646600,-500.0,0.00019721,3]
[347428439,1735794646609,-500.0,0.00019721,3]
[347428440,1735794646619,-500.0,0.00019721,3]
[347428441,1735794646628,-502.38232748,0.00019721,3]
[347428442,1735794646637,-500.0,0.00019721,3]
[347428443,1735794646646,-501.46937819,0.00019721,3]
[347428444,1735794646655,-500.0,0.00019721,3]
[347428445,1735794646664,-500.0,0.00019721,3]
[347428446,1735794646673,-500.0,0.00019721,3]
[347428447,1735794646682,-503.9762072,0.00019721,3]
[347428448,1735794646691,-503.66986475,0.00019721,3]
[347428449,1735794646702,-500.0,0.00019721,3]
[347428450,1735794646711,-848.74,0.00019721,3]
[347428451,1735794646720,-501.79611731,0.00019721,3]
[347428452,1735794646729,-500.0,0.00019721,3]
[347428453,1735794646739,-500.06,0.00019721,3]
[347428454,1735794646747,-500.0,0.00019721,3]
[347428455,1735794646756,-500.0,0.00019721,3]
[347428456,1735794646765,-500.0,0.00019721,3]
[347428457,1735794646774,-500.0,0.00019721,3]
[347428458,1735794646783,-337.76,0.00019721,3]
[347428459,1735794646792,-502.75834087,0.00019721,3]
[347428460,1735794646802,-500.0,0.00019721,3]
[347428461,1735794646811,-518.42418104,0.00019721,3]
[347428462,1735794646819,-503.18877693,0.00019721,3]
[347428463,1735794646828,-500.0,0.00019721,3]
[347428464,1735794646837,-500.0,0.00019721,3]
[347428465,1735794646846,-503.44337257,0.00019721,3]
[347428466,1735794646855,-560.2,0.00019721,3]
[347428467,1735794646865,-503.66354975,0.00019721,3]
[347428468,1735794646874,-502.72969743,0.00019721,3]
[347428469,1735794646883,-502.85129455,0.00019721,3]
[347428470,1735794646894,-503.84200207,0.00019721,3]
[347428471,1735794646905,-2528.29,0.00019721,3]
[347428472,1735794646915,-1957.32,0.00019721,3]
[347428473,1735794646926,-1957.32,0.00019721,3]
[347428474,1735794646935,-1957.32,0.00019721,3]
[347428475,1735794646945,-500.0,0.00019721,3]
[347428476,1735794646955,-500.0,0.00019721,3]
[347428477,1735794646964,-500.0,0.00019721,3]
[347428478,1735794646973,-500.0,0.00019721,3]
[347428479,1735794646985,-501.89458484,0.00019721,3]
[347428480,1735794646995,-501.59959898,0.00019721,3]
[347428481,1735794647004,-500.0,0.00019722,3]
[347428482,1735794647013,-500.0,0.00019722,3]
[347428483,1735794647023,-500.0,0.00019722,3]
[347428484,1735794647032,-500.0,0.00019722,3]
[347428485,1735794647042,-500.0,0.00019722,3]
[347428486,1735794647050,-500.0,0.00019722,3]
[347428487,1735794647060,-500.0,0.00019722,3]
[347428488,1735794647069,-500.0,0.00019722,3]
[347428489,1735794647078,-500.0,0.00019722,3]
[347428490,1735794647087,-500.0,0.00019722,3]
[347428491,1735794647096,-505.05436508,0.00019722,3]
[347428492,1735794647106,-501.07885186,0.00019722,3]
[347428493,1735794647114,-500.0,0.00019722,3]
[347428494,1735794647124,-500.0,0.00019722,3]
[347428495,1735794647133,-500.0,0.00019722,3]
[347428496,1735794647142,-502.68456413,0.00019722,3]
[347428497,1735794647151,-504.05127018,0.00019722,3]
[347428498,1735794647160,-501.66950445,0.00019722,3]
[347428499,1735794647169,-500.0,0.00019722,3]
[347428500,1735794647178,-500.0,0.00019722,3]
[347428501,1735794647187,-502.28494733,0.00019722,3]
[347428502,1735794647196,-500.0,0.00019722,3]
[347428503,1735794647206,-500.0,0.00019722,3]